[Event "Early-Titled-Tuesday-Blitz-February-13-2024"]
[Site "Chess.com"]
[Date "2024.02.13"]
[Round "2"]
[White "secretsuperstar7"]
[Black "theoneandonlydaaevik"]
[Result "1-0"]
[WhiteElo "2517"]
[BlackElo "2226"]
[TimeControl "180+1"]
[EndTime "8:19:25 PST"]
[Termination "secretsuperstar7 won on time"]

1. c4 {[%clk 0:03:00.9]} 1... Nf6 {[%clk 0:02:58.5]} 2. Nc3 {[%clk 0:03:00.5]}
2... e6 {[%clk 0:02:57.7]} 3. e4 {[%clk 0:03:00.1]} 3... d5 {[%clk 0:02:58.4]}
4. e5 {[%clk 0:03:00.2]} 4... d4 {[%clk 0:02:58.6]} 5. exf6 {[%clk 0:03:00.6]}
5... dxc3 {[%clk 0:02:59.3]} 6. bxc3 {[%clk 0:03:01.5]} 6... Qxf6 {[%clk
0:02:59.7]} 7. d4 {[%clk 0:03:00.7]} 7... b6 {[%clk 0:03:00.3]} 8. Be2 {[%clk
0:02:58.6]} 8... Bb7 {[%clk 0:03:00]} 9. Bf3 {[%clk 0:02:58.6]} 9... Bxf3 {[%clk
0:03:00.3]} 10. Nxf3 {[%clk 0:02:58.9]} 10... Bd6 {[%clk 0:03:00.2]} 11. Qa4+
{[%clk 0:02:44.6]} 11... c6 {[%clk 0:03:00.4]} 12. O-O {[%clk 0:02:41.2]} 12...
O-O {[%clk 0:03:00.9]} 13. Be3 {[%clk 0:02:38.1]} 13... Rc8 {[%clk 0:02:59.6]}
14. Rfd1 {[%clk 0:02:29.4]} 14... Nd7 {[%clk 0:02:32.4]} 15. Rab1 {[%clk
0:02:25.2]} 15... a6 {[%clk 0:02:04.1]} 16. c5 {[%clk 0:02:16.7]} 16... b5
{[%clk 0:01:34]} 17. Qc2 {[%clk 0:02:16.1]} 17... Bf4 {[%clk 0:01:20.7]} 18. Qe4
{[%clk 0:02:03.1]} 18... Bxe3 {[%clk 0:01:19.1]} 19. fxe3 {[%clk 0:02:02.7]}
19... Rab8 {[%clk 0:01:13.3]} 20. Rf1 {[%clk 0:02:01.5]} 20... Qg6 {[%clk
0:01:08]} 21. Qf4 {[%clk 0:01:56.4]} 21... f6 {[%clk 0:00:47.3]} 22. Qd6 {[%clk
0:01:51.6]} 22... Qe8 {[%clk 0:00:47.2]} 23. Qg3 {[%clk 0:01:37.7]} 23... Rb7
{[%clk 0:00:25.2]} 24. Nd2 {[%clk 0:01:36.7]} 24... e5 {[%clk 0:00:09.1]} 25.
Ne4 {[%clk 0:01:34.5]} 25... Qe6 {[%clk 0:00:04.7]} 26. Nd6 {[%clk 0:01:34]}
26... Rbc7 {[%clk 0:00:05.1]} 27. Nxc8 {[%clk 0:01:31.8]} 27... Rxc8 {[%clk
0:00:06]} 28. Qf3 {[%clk 0:01:30.1]} 28... e4 {[%clk 0:00:04.3]} 29. Qf4 {[%clk
0:01:29.2]} 29... Qxa2 {[%clk 0:00:03]} 30. Qxe4 {[%clk 0:01:28.7]} 30... Kf7
{[%clk 0:00:01.6]} 31. Ra1 {[%clk 0:01:26.9]} 31... Qe6 {[%clk 0:00:01.1]} 32.
Qxe6+ {[%clk 0:01:17.7]} 32... Kxe6 {[%clk 0:00:02]} 33. Rxa6 {[%clk 0:01:17.9]}
33... Kd5 {[%clk 0:00:02.4]} 34. Re1 {[%clk 0:01:13.7]} 34... Kc4 {[%clk
0:00:01.7]} 35. Ra3 {[%clk 0:01:12.5]} 35... Nb8 {[%clk 0:00:01.2]} 36. Kf2
{[%clk 0:01:10.7]} 36... Re8 {[%clk 0:00:01.2]} 37. Ke2 {[%clk 0:01:10.6]} 37...
Nd7 {[%clk 0:00:01.7]} 38. Rb1 {[%clk 0:01:10.6]} 38... f5 {[%clk 0:00:01.4]}
39. Rb4+ {[%clk 0:01:10.6]} 39... Kd5 {[%clk 0:00:02.1]} 40. Ra7 {[%clk
0:01:09.8]} 40... Re7 {[%clk 0:00:02.1]} 41. g3 {[%clk 0:01:06.1]} 41... g5
{[%clk 0:00:01.9]} 42. Kd2 {[%clk 0:01:00.1]} 1-0

[Event "Early-Titled-Tuesday-Blitz-February-13-2024"]
[Site "Chess.com"]
[Date "2024.02.13"]
[Round "2"]
[White "bulletteemo"]
[Black "Roedor"]
[Result "1-0"]
[WhiteElo "2538"]
[BlackElo "2308"]
[TimeControl "180+1"]
[EndTime "8:19:29 PST"]
[Termination "bulletteemo won on time"]

1. e4 {[%clk 0:03:00.9]} 1... e5 {[%clk 0:02:57]} 2. Nf3 {[%clk 0:03:01]} 2...
Nc6 {[%clk 0:02:56.4]} 3. Bc4 {[%clk 0:03:01.7]} 3... Bc5 {[%clk 0:02:55.1]} 4.
c3 {[%clk 0:03:02]} 4... Nf6 {[%clk 0:02:54.7]} 5. d4 {[%clk 0:03:02.3]} 5...
exd4 {[%clk 0:02:54.6]} 6. b4 {[%clk 0:03:02.9]} 6... Be7 {[%clk 0:02:54.6]} 7.
e5 {[%clk 0:03:03.3]} 7... Ne4 {[%clk 0:02:48.4]} 8. b5 {[%clk 0:02:59.4]} 8...
Na5 {[%clk 0:02:47.9]} 9. Bd5 {[%clk 0:02:59.2]} 9... Nxc3 {[%clk 0:02:39.7]}
10. Nxc3 {[%clk 0:02:57.8]} 10... dxc3 {[%clk 0:02:40.6]} 11. O-O {[%clk
0:02:52.4]} 11... c6 {[%clk 0:02:40.4]} 12. Be4 {[%clk 0:02:49.4]} 12... d5
{[%clk 0:02:37.7]} 13. exd6 {[%clk 0:02:48.1]} 13... Qxd6 {[%clk 0:02:37.7]} 14.
Qc2 {[%clk 0:02:45.8]} 14... cxb5 {[%clk 0:02:29.7]} 15. Rd1 {[%clk 0:02:43.6]}
15... Qc7 {[%clk 0:02:18.8]} 16. Bxh7 {[%clk 0:02:24.4]} 16... Bg4 {[%clk
0:02:16.4]} 17. h3 {[%clk 0:02:04.1]} 17... Bxf3 {[%clk 0:02:16]} 18. gxf3
{[%clk 0:02:05]} 18... g6 {[%clk 0:01:50.9]} 19. Bxg6 {[%clk 0:01:55.1]} 19...
Rg8 {[%clk 0:01:50.5]} 20. Qf5 {[%clk 0:01:51.5]} 20... Rxg6+ {[%clk 0:01:49.5]}
21. Kh1 {[%clk 0:01:51.7]} 21... Qc8 {[%clk 0:01:33.3]} 22. Qxb5+ {[%clk
0:01:49.3]} 22... Nc6 {[%clk 0:01:29.9]} 23. Qh5 {[%clk 0:01:47.5]} 23... Bf6
{[%clk 0:01:02.3]} 24. Ba3 {[%clk 0:01:40.1]} 24... Ne7 {[%clk 0:00:30.1]} 25.
Re1 {[%clk 0:01:35]} 25... Kf8 {[%clk 0:00:20.4]} 26. Re4 {[%clk 0:01:11.6]}
26... Qc7 {[%clk 0:00:07.7]} 27. Rae1 {[%clk 0:01:05.9]} 27... Re8 {[%clk
0:00:07.2]} 28. Qh7 {[%clk 0:00:31.3]} 28... Rg8 {[%clk 0:00:03.9]} 29. Qh6+
{[%clk 0:00:27.7]} 29... Bg7 {[%clk 0:00:03.3]} 30. Rxe7 {[%clk 0:00:20]} 30...
Rxe7 {[%clk 0:00:02.3]} 31. Rxe7 {[%clk 0:00:18.2]} 1-0

[Event "Early-Titled-Tuesday-Blitz-February-13-2024"]
[Site "Chess.com"]
[Date "2024.02.13"]
[Round "2"]
[White "Pertinhez76"]
[Black "rhungaski"]
[Result "0-1"]
[WhiteElo "2175"]
[BlackElo "2488"]
[TimeControl "180+1"]
[EndTime "8:19:29 PST"]
[Termination "rhungaski won on time"]

1. d4 {[%clk 0:03:00.9]} 1... g6 {[%clk 0:02:59.2]} 2. Nf3 {[%clk 0:02:59.5]}
2... Bg7 {[%clk 0:02:58.6]} 3. c4 {[%clk 0:03:00.1]} 3... d6 {[%clk 0:02:58.4]}
4. Nc3 {[%clk 0:03:00.6]} 4... Nf6 {[%clk 0:02:57.6]} 5. e4 {[%clk 0:03:01.2]}
5... O-O {[%clk 0:02:57.3]} 6. Be2 {[%clk 0:03:00.7]} 6... e5 {[%clk 0:02:57.5]}
7. dxe5 {[%clk 0:03:00.2]} 7... dxe5 {[%clk 0:02:58.4]} 8. Qxd8 {[%clk
0:03:00.4]} 8... Rxd8 {[%clk 0:02:59.3]} 9. Bg5 {[%clk 0:03:00.6]} 9... c6
{[%clk 0:02:51.8]} 10. Nxe5 {[%clk 0:02:55.8]} 10... Re8 {[%clk 0:02:49.2]} 11.
O-O-O {[%clk 0:02:53.4]} 11... Nbd7 {[%clk 0:02:37.9]} 12. f4 {[%clk 0:02:46.2]}
12... Nxe5 {[%clk 0:02:33.3]} 13. fxe5 {[%clk 0:02:45.8]} 13... Nd7 {[%clk
0:02:34]} 14. h4 {[%clk 0:02:06.3]} 14... Nxe5 {[%clk 0:02:20.1]} 15. Kc2 {[%clk
0:01:58.4]} 15... a5 {[%clk 0:02:15.4]} 16. b3 {[%clk 0:01:57.3]} 16... Ng4
{[%clk 0:01:59.4]} 17. Bxg4 {[%clk 0:01:38.8]} 17... Bxg4 {[%clk 0:02:00.3]} 18.
Rd2 {[%clk 0:01:38.9]} 18... h6 {[%clk 0:01:42.8]} 19. Be3 {[%clk 0:01:32.5]}
19... a4 {[%clk 0:01:40.3]} 20. Bd4 {[%clk 0:01:14.1]} 20... axb3+ {[%clk
0:01:37.3]} 21. axb3 {[%clk 0:01:08]} 21... Bf8 {[%clk 0:01:36.6]} 22. Kb2
{[%clk 0:00:59.9]} 22... Ba3+ {[%clk 0:01:25.7]} 23. Kc2 {[%clk 0:00:54.6]}
23... Bb4 {[%clk 0:01:20.8]} 24. Re1 {[%clk 0:00:54.6]} 24... b5 {[%clk
0:01:11.4]} 25. c5 {[%clk 0:00:48.1]} 25... f5 {[%clk 0:00:58.5]} 26. e5 {[%clk
0:00:38]} 26... f4 {[%clk 0:00:57.8]} 27. Rf1 {[%clk 0:00:12.4]} 27... Bf5+
{[%clk 0:00:53.5]} 28. Kd1 {[%clk 0:00:12.7]} 28... Ra1+ {[%clk 0:00:31.2]} 29.
Ke2 {[%clk 0:00:12.9]} 29... Rxf1 {[%clk 0:00:32.1]} 30. Kxf1 {[%clk 0:00:13.2]}
30... Rd8 {[%clk 0:00:33]} 31. e6 {[%clk 0:00:03.8]} 31... Bxe6 {[%clk
0:00:29.2]} 32. Rd3 {[%clk 0:00:02.4]} 32... Bxb3 {[%clk 0:00:26.6]} 33. Ne2
{[%clk 0:00:01.3]} 33... Bc4 {[%clk 0:00:25.4]} 0-1

[Event "Early-Titled-Tuesday-Blitz-February-13-2024"]
[Site "Chess.com"]
[Date "2024.02.13"]
[Round "2"]
[White "mary-sanna"]
[Black "Cirky"]
[Result "0-1"]
[WhiteElo "2163"]
[BlackElo "2479"]
[TimeControl "180+1"]
[EndTime "8:19:29 PST"]
[Termination "Cirky won on time"]

1. d4 {[%clk 0:03:00.3]} 1... Nf6 {[%clk 0:02:59.6]} 2. c4 {[%clk 0:03:00.1]}
2... e6 {[%clk 0:02:59.9]} 3. Nf3 {[%clk 0:02:59.3]} 3... d5 {[%clk 0:02:56.7]}
4. g3 {[%clk 0:02:59.3]} 4... Bb4+ {[%clk 0:02:56.3]} 5. Bd2 {[%clk 0:02:59]}
5... Be7 {[%clk 0:02:56.3]} 6. Bg2 {[%clk 0:02:58.6]} 6... O-O {[%clk
0:02:56.5]} 7. Nc3 {[%clk 0:02:58.2]} 7... c6 {[%clk 0:02:56.7]} 8. O-O {[%clk
0:02:58]} 8... Nbd7 {[%clk 0:02:57]} 9. Qc2 {[%clk 0:02:55.5]} 9... dxc4 {[%clk
0:02:47.9]} 10. Ne5 {[%clk 0:02:40.4]} 10... Nxe5 {[%clk 0:02:35.4]} 11. dxe5
{[%clk 0:02:40.3]} 11... Nd5 {[%clk 0:02:35.8]} 12. Be4 {[%clk 0:02:28.8]} 12...
h6 {[%clk 0:02:08.2]} 13. a4 {[%clk 0:02:11.8]} 13... Rb8 {[%clk 0:01:55.4]} 14.
a5 {[%clk 0:01:47.6]} 14... b5 {[%clk 0:01:49.2]} 15. axb6 {[%clk 0:01:46.3]}
15... axb6 {[%clk 0:01:49.4]} 16. Ra7 {[%clk 0:01:45.2]} 16... b5 {[%clk
0:01:39.9]} 17. Qc1 {[%clk 0:01:32.2]} 17... Bc5 {[%clk 0:01:32.4]} 18. Ra1
{[%clk 0:01:10.2]} 18... f5 {[%clk 0:01:27.7]} 19. exf6 {[%clk 0:01:08.3]} 19...
Qxf6 {[%clk 0:01:27.7]} 20. Bf3 {[%clk 0:00:41.9]} 20... Bd4 {[%clk 0:00:51.1]}
21. Ne4 {[%clk 0:00:40.4]} 21... Qg6 {[%clk 0:00:50.2]} 22. Rb1 {[%clk
0:00:31.5]} 22... e5 {[%clk 0:00:49.3]} 23. b3 {[%clk 0:00:29.4]} 23... Bf5
{[%clk 0:00:40.5]} 24. Nc3 {[%clk 0:00:18.7]} 24... Nxc3 {[%clk 0:00:31]} 25.
Bxc3 {[%clk 0:00:15.6]} 25... Bxc3 {[%clk 0:00:26.9]} 26. Qxc3 {[%clk
0:00:14.7]} 26... Bxb1 {[%clk 0:00:27.3]} 27. bxc4 {[%clk 0:00:13.6]} 27... Be4
{[%clk 0:00:25.9]} 28. cxb5 {[%clk 0:00:07.1]} 28... Bxf3 {[%clk 0:00:25.9]} 29.
exf3 {[%clk 0:00:06.2]} 29... cxb5 {[%clk 0:00:26.2]} 30. Qxe5 {[%clk
0:00:06.2]} 30... b4 {[%clk 0:00:26.5]} 31. Rc1 {[%clk 0:00:04.3]} 31... b3
{[%clk 0:00:26.5]} 32. Qd5+ {[%clk 0:00:02.4]} 32... Kh7 {[%clk 0:00:25.9]} 0-1

[Event "Early-Titled-Tuesday-Blitz-February-13-2024"]
[Site "Chess.com"]
[Date "2024.02.13"]
[Round "2"]
[White "Quattroporte300"]
[Black "AlexTruskavetsky"]
[Result "1-0"]
[WhiteElo "2418"]
[BlackElo "2727"]
[TimeControl "180+1"]
[EndTime "8:19:32 PST"]
[Termination "Quattroporte300 won by checkmate"]

1. e4 {[%clk 0:02:56]} 1... c5 {[%clk 0:02:59.3]} 2. Nf3 {[%clk 0:02:55.5]} 2...
Nc6 {[%clk 0:02:59.5]} 3. d4 {[%clk 0:02:54.3]} 3... cxd4 {[%clk 0:02:59.6]} 4.
Nxd4 {[%clk 0:02:55.2]} 4... Nf6 {[%clk 0:03:00.1]} 5. Nc3 {[%clk 0:02:55.2]}
5... e6 {[%clk 0:03:00.5]} 6. Nxc6 {[%clk 0:02:52.9]} 6... bxc6 {[%clk
0:03:00.5]} 7. e5 {[%clk 0:02:53.5]} 7... Nd5 {[%clk 0:03:00.9]} 8. Ne4 {[%clk
0:02:53.9]} 8... f5 {[%clk 0:03:01.2]} 9. Ng5 {[%clk 0:02:17.1]} 9... Ba6 {[%clk
0:02:35.7]} 10. Bxa6 {[%clk 0:01:52.9]} 10... Qa5+ {[%clk 0:02:34.9]} 11. Bd2
{[%clk 0:01:53.6]} 11... Qxa6 {[%clk 0:02:35]} 12. Qe2 {[%clk 0:01:54.3]} 12...
Qxe2+ {[%clk 0:02:32.7]} 13. Kxe2 {[%clk 0:01:55.2]} 13... h6 {[%clk 0:02:33.2]}
14. Nh3 {[%clk 0:01:39.6]} 14... g5 {[%clk 0:02:33.1]} 15. f4 {[%clk 0:01:37]}
15... g4 {[%clk 0:02:33.3]} 16. Nf2 {[%clk 0:01:35.4]} 16... h5 {[%clk
0:02:33.4]} 17. h3 {[%clk 0:01:32.8]} 17... g3 {[%clk 0:02:30.3]} 18. Nd3 {[%clk
0:01:32.9]} 18... h4 {[%clk 0:02:30.6]} 19. c4 {[%clk 0:01:29.5]} 19... Nc7
{[%clk 0:02:31.1]} 20. b4 {[%clk 0:01:26.1]} 20... Be7 {[%clk 0:02:31]} 21. a4
{[%clk 0:01:21.2]} 21... Kf7 {[%clk 0:02:31.4]} 22. b5 {[%clk 0:01:14.7]} 22...
Rhb8 {[%clk 0:02:21.2]} 23. Rhb1 {[%clk 0:01:14.7]} 23... Ne8 {[%clk 0:02:13.1]}
24. Be3 {[%clk 0:01:06.1]} 24... Rc8 {[%clk 0:01:57.8]} 25. c5 {[%clk
0:01:03.7]} 25... Rab8 {[%clk 0:01:55.2]} 26. b6 {[%clk 0:01:01.3]} 26... axb6
{[%clk 0:01:50.6]} 27. cxb6 {[%clk 0:01:01]} 27... c5 {[%clk 0:01:51.5]} 28. a5
{[%clk 0:00:58.9]} 28... c4 {[%clk 0:01:52.1]} 29. Nb4 {[%clk 0:00:56.2]} 29...
c3 {[%clk 0:01:44]} 30. Na6 {[%clk 0:00:51.9]} 30... c2 {[%clk 0:01:43.4]} 31.
Nxb8 {[%clk 0:00:35.2]} 31... cxb1=Q {[%clk 0:01:43.5]} 32. Rxb1 {[%clk
0:00:35.7]} 32... Rxb8 {[%clk 0:01:44.4]} 33. a6 {[%clk 0:00:36.1]} 33... Rc8
{[%clk 0:01:22.8]} 34. b7 {[%clk 0:00:32.6]} 34... Rc2+ {[%clk 0:01:23.1]} 35.
Kd3 {[%clk 0:00:33.1]} 35... Rxg2 {[%clk 0:01:23.1]} 36. b8=Q {[%clk 0:00:32]}
36... Ra2 {[%clk 0:01:23.9]} 37. a7 {[%clk 0:00:29.8]} 37... Ra3+ {[%clk
0:01:22.9]} 38. Rb3 {[%clk 0:00:30.3]} 38... Rxb3+ {[%clk 0:00:56.1]} 39. Qxb3
{[%clk 0:00:29.5]} 39... Nc7 {[%clk 0:00:56.6]} 40. Qa4 {[%clk 0:00:24.9]} 40...
g2 {[%clk 0:00:55]} 41. a8=Q {[%clk 0:00:19.2]} 41... Nd5 {[%clk 0:00:54.7]} 42.
Qxd5 {[%clk 0:00:17.8]} 42... exd5 {[%clk 0:00:54.6]} 43. Qxd7 {[%clk
0:00:17.3]} 43... Kf8 {[%clk 0:00:55]} 44. Qxf5+ {[%clk 0:00:17.3]} 44... Ke8
{[%clk 0:00:55.4]} 45. Qg6+ {[%clk 0:00:17.7]} 45... Kd7 {[%clk 0:00:56]} 46.
Qxg2 {[%clk 0:00:18.3]} 46... Ke6 {[%clk 0:00:56.6]} 47. Qg4+ {[%clk 0:00:17.9]}
47... Kf7 {[%clk 0:00:56.5]} 48. f5 {[%clk 0:00:17.6]} 48... Bd8 {[%clk
0:00:56.5]} 49. Qg6+ {[%clk 0:00:18.1]} 49... Kf8 {[%clk 0:00:56.2]} 50. Bh6+
{[%clk 0:00:18.1]} 50... Ke7 {[%clk 0:00:56.9]} 51. Bg5+ {[%clk 0:00:18.5]}
51... Kd7 {[%clk 0:00:57.3]} 52. Qd6+ {[%clk 0:00:18.3]} 52... Ke8 {[%clk
0:00:57.7]} 53. Qxd8+ {[%clk 0:00:18.7]} 53... Kf7 {[%clk 0:00:58.2]} 54. e6+
{[%clk 0:00:19.2]} 54... Kg7 {[%clk 0:00:58.3]} 55. Qf6+ {[%clk 0:00:19.8]}
55... Kh7 {[%clk 0:00:58.8]} 56. Qg6+ {[%clk 0:00:19.8]} 56... Kh8 {[%clk
0:00:59.2]} 57. Bf6# {[%clk 0:00:20.3]} 1-0

[Event "Early-Titled-Tuesday-Blitz-February-13-2024"]
[Site "Chess.com"]
[Date "2024.02.13"]
[Round "2"]
[White "Aleksandar-Topalov"]
[Black "KbzasDavid16"]
[Result "0-1"]
[WhiteElo "2349"]
[BlackElo "2558"]
[TimeControl "180+1"]
[EndTime "8:19:32 PST"]
[Termination "KbzasDavid16 won by resignation"]

1. b3 {[%clk 0:03:00.9]} 1... e5 {[%clk 0:02:59.6]} 2. Bb2 {[%clk 0:03:01.1]}
2... Nc6 {[%clk 0:03:00.2]} 3. e3 {[%clk 0:03:01]} 3... Nf6 {[%clk 0:03:00.8]}
4. Bb5 {[%clk 0:03:00.7]} 4... Bd6 {[%clk 0:03:01.3]} 5. Na3 {[%clk 0:03:00]}
5... Be7 {[%clk 0:02:39.7]} 6. Nc4 {[%clk 0:02:54.8]} 6... e4 {[%clk 0:02:34.6]}
7. Bxc6 {[%clk 0:02:52.1]} 7... bxc6 {[%clk 0:02:29.2]} 8. Ne2 {[%clk 0:02:52]}
8... O-O {[%clk 0:02:28.2]} 9. O-O {[%clk 0:02:51.5]} 9... d5 {[%clk 0:02:28.2]}
10. Ne5 {[%clk 0:02:51.1]} 10... Bb7 {[%clk 0:02:22.4]} 11. f4 {[%clk
0:02:49.9]} 11... c5 {[%clk 0:02:10.1]} 12. Ng3 {[%clk 0:02:49.5]} 12... Qc8
{[%clk 0:01:57.5]} 13. d3 {[%clk 0:02:19.1]} 13... exd3 {[%clk 0:01:49.1]} 14.
Qxd3 {[%clk 0:02:18.9]} 14... Rd8 {[%clk 0:01:41.2]} 15. Rfd1 {[%clk 0:02:07.4]}
15... Qe6 {[%clk 0:01:15.4]} 16. Qb5 {[%clk 0:01:39.2]} 16... Qb6 {[%clk
0:01:10.4]} 17. Qe2 {[%clk 0:01:28.9]} 17... a5 {[%clk 0:01:02.7]} 18. Nf5
{[%clk 0:01:26.8]} 18... Bf8 {[%clk 0:01:00.2]} 19. Ng3 {[%clk 0:00:50]} 19...
c4 {[%clk 0:00:52.4]} 20. Bd4 {[%clk 0:00:44.4]} 20... c5 {[%clk 0:00:39.6]} 21.
Bc3 {[%clk 0:00:42.6]} 21... cxb3 {[%clk 0:00:28.2]} 22. axb3 {[%clk 0:00:41.6]}
22... d4 {[%clk 0:00:27.9]} 23. Bd2 {[%clk 0:00:31.2]} 23... Ne4 {[%clk
0:00:20]} 24. Nxe4 {[%clk 0:00:27.9]} 24... Bxe4 {[%clk 0:00:20.9]} 25. exd4
{[%clk 0:00:27]} 25... Bxc2 {[%clk 0:00:17.9]} 26. Rdc1 {[%clk 0:00:25.2]} 26...
cxd4 {[%clk 0:00:15.1]} 27. Rxc2 {[%clk 0:00:20.2]} 27... d3+ {[%clk 0:00:13.2]}
28. Be3 {[%clk 0:00:20.7]} 28... Qxb3 {[%clk 0:00:08.9]} 29. Rb2 {[%clk
0:00:18.6]} 29... dxe2 {[%clk 0:00:03.4]} 30. Rxb3 {[%clk 0:00:18.3]} 30... Rd1+
{[%clk 0:00:03.7]} 31. Kf2 {[%clk 0:00:16.6]} 31... e1=Q+ {[%clk 0:00:03.7]} 0-1

[Event "Early-Titled-Tuesday-Blitz-February-13-2024"]
[Site "Chess.com"]
[Date "2024.02.13"]
[Round "2"]
[White "Vigg-Sama"]
[Black "ejam94"]
[Result "0-1"]
[WhiteElo "2251"]
[BlackElo "2510"]
[TimeControl "180+1"]
[EndTime "8:19:32 PST"]
[Termination "ejam94 won by checkmate"]

1. e4 {[%clk 0:02:59.7]} 1... c5 {[%clk 0:02:40.9]} 2. Nf3 {[%clk 0:02:59.3]}
2... Nc6 {[%clk 0:02:41.5]} 3. Bb5 {[%clk 0:02:58.3]} 3... g6 {[%clk 0:02:40.3]}
4. Bxc6 {[%clk 0:02:58.7]} 4... bxc6 {[%clk 0:02:41]} 5. d4 {[%clk 0:02:57.5]}
5... cxd4 {[%clk 0:02:36.9]} 6. Qxd4 {[%clk 0:02:58.4]} 6... Nf6 {[%clk
0:02:33.8]} 7. c4 {[%clk 0:02:57.8]} 7... Bg7 {[%clk 0:02:09.2]} 8. Nc3 {[%clk
0:02:57.2]} 8... O-O {[%clk 0:02:08.8]} 9. O-O {[%clk 0:02:55.8]} 9... d6 {[%clk
0:02:02.8]} 10. Qd3 {[%clk 0:02:45.2]} 10... Bg4 {[%clk 0:01:58.8]} 11. Bg5
{[%clk 0:02:40.7]} 11... Nd7 {[%clk 0:01:51.2]} 12. h3 {[%clk 0:02:31]} 12...
Bxf3 {[%clk 0:01:50.5]} 13. Qxf3 {[%clk 0:02:31.9]} 13... Ne5 {[%clk 0:01:46.1]}
14. Qe2 {[%clk 0:02:31.5]} 14... h6 {[%clk 0:01:45.8]} 15. Bh4 {[%clk
0:02:28.4]} 15... Rb8 {[%clk 0:01:29.1]} 16. b3 {[%clk 0:02:28]} 16... g5 {[%clk
0:01:07.4]} 17. Bg3 {[%clk 0:02:27.1]} 17... Qd7 {[%clk 0:00:57.7]} 18. Rad1
{[%clk 0:02:23.7]} 18... Ng6 {[%clk 0:00:53.7]} 19. e5 {[%clk 0:02:05.8]} 19...
Qe6 {[%clk 0:00:51.2]} 20. exd6 {[%clk 0:01:51.9]} 20... Bxc3 {[%clk 0:00:49.6]}
21. Qxe6 {[%clk 0:01:51.5]} 21... fxe6 {[%clk 0:00:49.4]} 22. dxe7 {[%clk
0:01:52.2]} 22... Nxe7 {[%clk 0:00:40.3]} 23. Bxb8 {[%clk 0:01:51.5]} 23... Rxb8
{[%clk 0:00:40.8]} 24. Rd6 {[%clk 0:01:50.6]} 24... Kf7 {[%clk 0:00:39.6]} 25.
Rfd1 {[%clk 0:01:49]} 25... Be5 {[%clk 0:00:31.9]} 26. Rd7 {[%clk 0:01:36.3]}
26... a5 {[%clk 0:00:28]} 27. Ra7 {[%clk 0:01:34.3]} 27... Bc3 {[%clk
0:00:27.9]} 28. Rdd7 {[%clk 0:01:33]} 28... Bb4 {[%clk 0:00:27.9]} 29. Rac7
{[%clk 0:01:24.6]} 29... Kf6 {[%clk 0:00:27.4]} 30. Kf1 {[%clk 0:01:19]} 30...
Ra8 {[%clk 0:00:27.6]} 31. Rb7 {[%clk 0:01:16.4]} 31... Bc5 {[%clk 0:00:26.7]}
32. Ke2 {[%clk 0:01:12.3]} 32... h5 {[%clk 0:00:21.5]} 33. g3 {[%clk 0:01:05.7]}
33... g4 {[%clk 0:00:21.2]} 34. hxg4 {[%clk 0:01:05.4]} 34... hxg4 {[%clk
0:00:21.2]} 35. Rd3 {[%clk 0:00:58.2]} 35... Rh8 {[%clk 0:00:20.7]} 36. Rd2
{[%clk 0:00:40.7]} 36... Rh2 {[%clk 0:00:20.7]} 37. Kf1 {[%clk 0:00:39.2]} 37...
Nf5 {[%clk 0:00:19.6]} 38. Kg1 {[%clk 0:00:34.1]} 38... Rh3 {[%clk 0:00:17.7]}
39. Kg2 {[%clk 0:00:34.7]} 39... Nd4 {[%clk 0:00:17.2]} 40. a3 {[%clk
0:00:30.2]} 40... Nf3 {[%clk 0:00:16.4]} 41. Rdd7 {[%clk 0:00:30.9]} 41... Rh2+
{[%clk 0:00:16.4]} 42. Kf1 {[%clk 0:00:30.9]} 42... Rxf2# {[%clk 0:00:16.6]} 0-1